Cogmind - Beta 11 @@@ ROGUE MODE // 2022.03.23 @ 20:58:46 Player: Red Box Result: Destroyed by D-53 Grenadier with Mini Grenade Launcher Performance ------------- Evolutions (0) 0 Regions Visited (2) 400 Robots Destroyed (19) 95 Value Destroyed (412) 412 Prototype IDs (5) 100 Alien Tech Used (0) 0 Bonus (0) 0 TOTAL SCORE: 1007 Bonus ------- None Cogmind --------- Core Integrity 0/250 Matter 107/300 Energy 86/100 System Corruption 0% Temperature Cool (0) Movement Core (800) Ox15 Location -10/Mines Parts ------- > --- POWER (1) -------- (None) > --- PROPULSION (2) --- (None) > --- UTILITY (2) ------ High-capacity Storage Unit Targeting Computer > --- WEAPON (2) ------- Light Cannon Light Cannon > --- INVENTORY (20) --- Improved Ion Engine Light Treads Light Treads Light Treads Heat Sink Disposable Heat Sink Large Storage Unit Visual Processing Unit Weapon Shielding Light Armor Plating Shield Generator Shield Generator Shield Generator Shield Generator Autogun Autogun Autogun Autogun Mini Grenade Launcher Hammer Peak State ------------ > --- POWER ------------ Improved Ion Engine > --- PROPULSION ------- Light Treads Light Treads > --- UTILITY ---------- High-capacity Storage Unit Targeting Computer > --- WEAPON ----------- Light Cannon Mini Grenade Launcher > --- INVENTORY -------- Improved Ion Engine Light Treads Light Treads Light Treads Heat Sink Disposable Heat Sink Large Storage Unit Visual Processing Unit Weapon Shielding Light Armor Plating Shield Generator Shield Generator Shield Generator Shield Generator Autogun Autogun Autogun Autogun Light Cannon Hammer [Rating: 12] Favorites ----------- Power Ion Engine Engine Ion Engine Propulsion Aluminum Leg Treads Light Treads Leg Aluminum Leg Wheel Wheel Utility Targeting Computer Storage Large Storage Unit Processor Targeting Computer Weapon Autogun Ballistic Gun Autogun Ballistic Cannon Light Cannon Launcher Mini Grenade Launcher Impact Weapon Hammer Build | -11 -10 -10 ------- Run | Scr Mat Min Slots Evolved . | . . . Power . | . . . Propulsion . | . . . Utility . | . . . Weapon . | . . . Parts Attached 30 | 6 21 3 Power 4 | 1 3 . Engine 4 | 1 3 . Core . | . . . Reactor . | . . . Propulsion 10 | 2 8 . Treads 2 | . 2 . Leg 6 | 2 4 . Wheel 2 | . 2 . Hover . | . . . Flight . | . . . Utility 5 | 1 4 . Device . | . . . Storage 4 | 1 3 . Processor 1 | . 1 . Hackware . | . . . Protection . | . . . Artifact . | . . . Weapon 11 | 2 6 3 Energy Gun . | . . . Energy Cannon . | . . . Ballistic Gun 5 | 2 3 . Ballistic Cannon 3 | . 2 1 Launcher 1 | . . 1 Special Weapon . | . . . Impact Weapon 2 | . 1 1 Slashing Weapon . | . . . Piercing Weapon . | . . . Special Melee Weapon . | . . . Unidentified Prototypes . | . . . Parts Lost 7 | . 4 3 Power 1 | . . 1 Propulsion 4 | . 2 2 Utility . | . . . Weapon 2 | . 2 . Highest Loss Streak 4 | . 4 3 To Critical Strikes . | . . . Average Slot Usage (%) 99 | . 99 98 Engine 13 | . 14 12 Treads 9 | . 8 28 Leg 14 | . 15 . Wheel 3 | . 3 . Storage 14 | . 14 14 Processor 13 | . 13 14 Ballistic Gun 23 | . 24 . Ballistic Cannon 3 | . 2 22 Naked Turns . | . . . Heaviest Build 53 | 12 53 53 Greatest Support 40 | 20 40 40 Greatest Overweight (x) 2 | . 2 1 Average Overweight (x) . | . . 1 Largest Inventory Capacity 20 | 8 20 20 Average Capacity 16 | 7 16 20 Most Carried 20 | 5 20 20 Average Carried 14 | 2 14 20 Final Capacity 20 | 8 20 20 Final Carried 20 | 5 20 20 Class Distribution -------------------- 100% | Mutant Dominant Class ---------------- Mutant | -10/Materials Mutant | -10/Mines Resources | -11 -10 -10 ----------- Run | Scr Mat Min Matter Collected 623 | 194 397 32 Remotely . | . . . Salvage Created 588 | . 467 121 Parts 35 | . 27 8 Haulers Intercepted 1 | . 1 . Recyclers Shooed 1 | . . 1 Parts Field Recycled . | . . . Retrieved Matter . | . . . Parts Self-Destructed . | . . . Prevented . | . . . Kills | -11 -10 -10 ------- Run | Scr Mat Min Combat Hostiles Destroyed 27 | . 12 15 Guns 12 | . 12 . Cannons 3 | . . 3 AOE 12 | . . 12 Classes Destroyed 6 | . 4 2 Worker 2 | . 1 1 Hauler 1 | . 1 . Recycler 1 | . . 1 Swarmer 6 | . 3 3 Grunt 9 | . 9 . Assembled 12 | . . 12 Best Kill Streak 14 | . 3 14 Combat Bots Only 12 | . 3 12 Max Kills in Single Turn 4 | . 1 4 Gunslinging . | . . . Exploded 4 | . . 4 Melee . | . . . Uniques/NPCs Destroyed . | . . . Combat | -11 -10 -10 -------- Run | Scr Mat Min Damage Taken 1105 | . 586 519 Core 253 | . 119 134 Absorbed by Shields . | . . . Regen/Repaired (Parts) 63 | . 63 . Core Remaining (%) 100 | 100 . . Volleys Fired 74 | . 65 9 Largest 2 | . 2 2 Hottest 70 | . 46 70 Shots Fired 147 | . 130 17 Gun 130 | . 130 . Cannon 12 | . . 12 Launcher 5 | . . 5 Special . | . . . Kinetic 142 | . 130 12 Thermal . | . . . Explosive 5 | . . 5 Electromagnetic . | . . . Robot Hit Streak 13 | . 13 5 Robot Miss Streak 5 | . 5 2 Penetration Max . | . . . Secondary Targets . | . . . Shots Hit Robots 83 | . 76 7 Core Hits 59 | . 28 31 Critical Kills . | . . . Critical Parts Destroyed . | . . . Critical Strikes . | . . . Melee Attacks 3 | . 1 2 Impact 3 | . 1 2 Slashing . | . . . Piercing . | . . . Sneak Attacks . | . . . Combat Hostiles . | . . . Follow-up Attacks . | . . . Damage Inflicted 1808 | . 828 980 Guns 828 | . 828 . Cannons 127 | . . 127 Explosions 853 | . . 853 Melee . | . . . Ramming . | . . . Kinetic 955 | . 828 127 Thermal . | . . . Explosive 853 | . . 853 Electromagnetic . | . . . Impact . | . . . Slashing . | . . . Piercing . | . . . Highest Corruption . | . . . Average Corruption . | . . . Corruption Purged . | . . . Corruption Blocked . | . . . Overload Shots . | . . . Overflow Damage 60 | . . 60 Projectiles . | . . . Explosions 60 | . . 60 Melee . | . . . Knockbacks 1 | . . 1 Impact . | . . . Kinetic 1 | . . 1 Secondary . | . . . Self-Inflicted Damage . | . . . Shots . | . . . Rammed . | . . . Targets Rammed . | . . . Kicked . | . . . Crushed . | . . . Highest Temperature 36 | . 36 36 Average Temperature 10 | . 8 16 Received Heat Transfer 234 | . 234 . Siege Activations . | . . . Robots Corrupted . | . . . Combat Hostiles . | . . . Parts Fried . | . . . Impact Corruptions . | . . . Robots Melted . | . . . Combat Hostiles . | . . . Parts Melted . | . . . Heat Transferred . | . . . Parts Sabotaged . | . . . Parts Stolen . | . . . Parts Stripped . | . . . Power Chain Reactions . | . . . Missiles Intercepted . | . . . Alert | -11 -10 -10 ------- Run | Scr Mat Min Peak Influence 185 | . 174 185 Initial . | . . . Average 42 | . 39 124 Maximum Alert Level . | . . . Low Security (%) 100 | 100 100 100 Level 1 . | . . . Level 2 . | . . . Level 3 . | . . . Level 4 . | . . . Level 5 . | . . . High Security . | . . . Max Security . | . . . Squads Dispatched 2 | . 2 . Investigation . | . . . Extermination . | . . . Reinforcement 2 | . 2 . Assault . | . . . Garrison . | . . . Intercept . | . . . Searches Triggered . | . . . Construction Impeded . | . . . Haulers Reinforced . | . . . Active Scanning Responses . | . . . Cargo Convoy Interrupts . | . . . Stealth | -11 -10 -10 --------- Run | Scr Mat Min Distress Signals 1 | . 1 . Communications Jammed . | . . . Distress Signals . | . . . Times Spotted 45 | . 23 22 Peak Tracking Total 15 | . 3 15 Tactical Retreats 2 | . 1 1 Traps | -11 -10 -10 ------- Run | Scr Mat Min Traps Triggered . | . . . Indirectly . | . . . Trap Hack Attempts . | . . . Triggered . | . . . Disarmed . | . . . Reprogrammed . | . . . Reused . | . . . Traps Extracted . | . . . Installed . | . . . Triggered . | . . . Machines | -11 -10 -10 ---------- Run | Scr Mat Min Machines Disabled 1 | . . 1 Max in Single Turn 1 | . . 1 Machines Sabotaged . | . . . Garrisons Compromised . | . . . Overloaded Fab Kills . | . . . Hacking | -11 -10 -10 --------- Run | Scr Mat Min Machines Accessed 9 | . 9 . Terminals 6 | . 6 . Fabricators . | . . . Repair Stations 1 | . 1 . Recycling Units 2 | . 2 . Scanalyzers . | . . . Garrison Access . | . . . Total Hacks 22 | . 22 . Successful 16 | . 16 . Failed 6 | . 6 . Catastrophic . | . . . Database Lockouts . | . . . Manual 11 | . 11 . Terminals 16 | . 16 . Fabricators . | . . . Repair Stations 2 | . 2 . Recycling Units 4 | . 4 . Scanalyzers . | . . . Garrison Access . | . . . Terminal Hacks 6 | . 6 . Robot Analysis 2 | . 2 . Prototype ID Bank 3 | . 3 . Terminal Index 1 | . 1 . Fabricator Hacks . | . . . Repair Station Hacks 2 | . 2 . Scan Component 1 | . 1 . Repair 1 | . 1 . Recycling Unit Hacks 2 | . 2 . Retrieve Components 2 | . 2 . Scanalyzer . | . . . Garrison Access Hacks . | . . . Unauthorized Hacks 6 | . 6 . Terminals 4 | . 4 . Track 1 | . 1 . Botnet 2 | . 2 . Operators 1 | . 1 . Fabricators . | . . . Repair Stations . | . . . Recycling Units 2 | . 2 . Reject 2 | . 2 . Scanalyzers . | . . . Garrison Access . | . . . Data Cores Recovered . | . . . Used . | . . . Hacking Detections 7 | . 7 . Full Trace Events 1 | . 1 . Feedback Events . | . . . Feedback Blocked . | . . . Robot Schematics Acquired . | . . . Robots Built . | . . . Authchips . | . . . Time . | . . . Total Robot Build Rating . | . . . Part Schematics Acquired . | . . . Parts Built . | . . . Authchips . | . . . Time . | . . . Total Part Build Rating . | . . . Parts Repaired 1 | . 1 . Time 32 | . 32 . Parts Recycled . | . . . Recycled Matter . | . . . Retrieved Matter . | . . . Retrieved Components 2 | . 2 . Parts Scanalyzed . | . . . Part Schematics Acquired . | . . . Parts Damaged . | . . . Bothacking | -11 -10 -10 ------------ Run | Scr Mat Min Used RIF Installer . | . . . Robots Hacked . | . . . Non-combat . | . . . Combat . | . . . Robot Hacks Applied . | . . . Relay Couplers Released . | . . . Fabnet Peak Effective % . | . . . Robots Rewired . | . . . Allies Hacked . | . . . Hacks Repelled . | . . . Allies | -11 -10 -10 -------- Run | Scr Mat Min Total Allies . | . . . Largest Group . | . . . Highest-Rated Group . | . . . Highest-Rated Ally . | . . . Total Orders . | . . . Ally Attacks . | . . . Total Damage . | . . . Kills . | . . . Allies Corrupted . | . . . Allies Melted . | . . . Intel | -11 -10 -10 ------- Run | Scr Mat Min Robot Analysis Total 2 | . 2 . Derelict Logs Recovered . | . . . Drone Launches . | . . . Drone Recoveries . | . . . Exploration | -11 -10 -10 ------------- Run | Scr Mat Min Turns Passed 2254 | 71 2068 115 Spaces Moved 1075 | 49 993 33 Core 6 | 6 . . Treads 274 | . 241 33 Legs 616 | 43 573 . Wheels 179 | . 179 . Hover . | . . . Flight . | . . . Fastest Speed 50 | 50 105 240 Average Speed 176 | 111 177 240 Slowest Speed 260 | 120 260 240 Overloaded Moves . | . . . Propulsion Burnouts . | . . . Robots Hopped . | . . . Cave-ins Triggered . | . . . Exploration Rate (%) 37 | 4 96 12 Regions Visited 2 Branch Regions 1 Pre-discovered Areas . | . . . Known Exits Taken . | . . . Unknown Exits Taken 2 | 1 1 . Scrap Searched . | . . . Spaces Dug 1 | . 1 . Terrain Destroyed 42 | . 1 41 Melee 1 | . 1 . Projectile 1 | . . 1 AOE 40 | . . 40 Terrain Rammed . | . . . Walls Destroyed . | . . . Machines Disabled . | . . . Actions | -11 -10 -10 --------- Run | Scr Mat Min Total 1313 | 65 1201 47 Wait 62 | . 62 . Move 1073 | 48 992 33 Hop . | . . . Pick Up 48 | 11 37 . Fast Attach 1 | . 1 . Attach 11 | 6 5 . Detach 1 | . 1 . Swap 18 | . 15 3 Drop 22 | . 22 . Fire 74 | . 65 9 Melee 3 | . 1 2 Ram . | . . . Kick . | . . . Crush . | . . . Escape Stasis . | . . . Rewire . | . . . Trap . | . . . Miscellaneous . | . . . Route ------- -11/Scrapyard -10/Materials (discovered 4 exits: [*Mat x3] / [*Min]) -10/Mines History --------- Turn | Location | Event 11 | -11/Scrapyard | Discovered new exit (range 16) 72 | -11/Scrapyard | Entered Materials 294 | -10/Materials | Discovered new exit (range 15) 307 | -10/Materials | Build established: Mutant 433 | -10/Materials | Discovered new exit (range 10) 684 | -10/Materials | Lost 4 parts (2n2w) 776 | -10/Materials | Discovered new exit (range 5) 1856 | -10/Materials | Repaired Autogun 2039 | -10/Materials | Discovered new exit (range 7) 2140 | -10/Materials | Entered Mines 2143 | -10/Mines | Core integrity fell below 50% 2201 | -10/Mines | Assembled infested the area 2246 | -10/Mines | Destroyed 12 combat bots 2250 | -10/Mines | Core integrity fell below 20% 2255 | -10/Mines | Destroyed by D-53 Grenadier with Mini Grenade Launcher Last Messages --------------- 02222_ as-40821 destroyed. 02222_ as-06454 destroyed. 02222_ as-40065 knocked back. 02223_ as-15430 destroyed. 02225_ Destroyed Asb. Blade. 02225_ as-40065 destroyed. 02226_ The unstable cave ceiling collapses. 02232_ as-68844 destroyed. 02236_ The unstable cave ceiling collapses. 02238_ as-71646 destroyed. 02238_ as-61229 destroyed. 02239_ D-53 Grenadier system corrupted by crushing effect. 02240_ D-53 Grenadier system terminally corrupted. 02243_ The unstable cave ceiling collapses. 02244_ as-13181 destroyed. 02245_ The unstable cave ceiling collapses. 02247_ Imp. Ion Engine destroyed. 02248_ The unstable cave ceiling collapses. 02251_ Lgt. Treads destroyed. 02255_ The unstable cave ceiling collapses. Map ----- +----------------------------------------------------+ | ?????????????????????????????????????????????????? | | ?????????????????????????????????????????????????? | | ?????????????????????????????????????????????????? | | ?????????????????????????????????????????????????? | | ?????????????????????????????????????????????????? | | ?????????????????????????????????????????????????? | | ?????????????????????????????????????????????????? | | ?????????????????????????????????????????????????? | | ?????????????????????????????????????????????????? | | ?????????????????????????????????????????????????? | | ?????????????????????????????????????????????????? | | ?????????????????????????????????????????????????? | | ?????????????????????????????????????????????????? | | ?????????????????????????????????????????????????? | | ?????????????????????????????????????????????????? | | ?????????????????????????????????????????????????? | | ?????????????????????????????????????????????????? | | ?????????????????????????????????????????????????? | | ?????????????????????????????????????????????????? | | ????????????????????????#########????????????????? | | ??????????????????????### #????????????????? | | ?????????????????????## ##???????????????? | | ?????????????????????# #???????????????? | | ?????????????????????# ### ????????? | | ??????????? # ### ????????? | | ?????????? % @ = ????????? | | ?????????? d # ???????? | | ?????????? #### #??????? | | ????????? ?????## % #??????? | | ?????????? ?????????## ## # #??????? | | ??????????????????########## ???????? | | ??????????????????# * = [ # # # ?#???????? | | ??????????????????# =[=="" # # ##%??????????? | | ??????????????????# """ ######????????????? | | ??????????????????# """ #####?????????????????? | | ??????????????????# #?????????????????????? | | ??????????????????##########?????????????????????? | | ?????????????????????????????????????????????????? | | ?????????????????????????????????????????????????? | | ?????????????????????????????????????????????????? | | ?????????????????????????????????????????????????? | | ?????????????????????????????????????????????????? | | ?????????????????????????????????????????????????? | | ?????????????????????????????????????????????????? | | ?????????????????????????????????????????????????? | | ?????????????????????????????????????????????????? | | ?????????????????????????????????????????????????? | | ?????????????????????????????????????????????????? | | ?????????????????????????????????????????????????? | | ?????????????????????????????????????????????????? | +----------------------------------------------------+ Best States ------------- Heat Dissipation 25 Energy Generation 12 Energy Capacity 265 Matter Stores 300 Matter Capacity 300 Sight Range 16 Terrain Scan Density 10 Evasion (%) 55 Targeting Accuracy 5 Recoil Reduction 2 Item Schematics ----------------- None Robot Schematics ------------------ None Fabricated ------------ Nothing Alien Tech Used ----------------- None Achievements -------------- None Challenges ------------ None Game ------ Seed LightpackThermalCanceller Manual? 0 Play Time 00:19:58 Cumulative 176.2 hours Start 2022.03.23 @ 19:54:58 End 2022.03.23 @ 20:58:46 Sessions 1 Manual Loads 0 Difficulty Rogue Special Mode None Game No. 169 Rogue 169 Adventurer 0 Explorer 0 Win Type - Total 0 Types 0/0/0/0/0/0/0/0/0 Lore% 39 Gallery% 47 Achievement% 36 Wizard Run 0 Options --------- ASCII 0 Keyboard 0 Movement Mouse Keybinds 0 Fullscreen 1 Font 16/SmallcapsGlow Map View 75x55 Tactical HUD 1 Map Filters NONE Filters NONE Steam 1 RUN: edefbfe3-8eed-4faa-b99e-6d527774c328